bitfinex/quotes_SOLUSD_20220302
["timestamp","ask_amount","ask_price","bid_price","bid_amount"]
[1646217589527,44.68330136,105.36,105.3,21.89461923]
[1646217589829,112.9,105.38,105.31,6.0]
[1646217590026,112.9,105.38,105.31,6.25]
[1646217590228,112.9,105.38,105.31,8.79904003]
[1646217590631,57.11704597,105.37,105.31,8.79904003]
[1646217590827,57.11704597,105.37,105.31,23.03674003]
[1646217591431,57.11704597,105.37,105.32,3.797]
[1646217591634,57.11704597,105.37,105.32,0.25]
[1646217591930,57.11704597,105.37,105.32,23.64408135]
[1646217592134,112.9,105.43,105.33,8.54904003]
[1646217592333,112.9,105.43,105.33,20.33904003]
[1646217592633,112.9,105.43,105.34,6.34404003]
[1646217592833,112.9,105.43,105.35,6.0]
[1646217593032,112.9,105.43,105.36,1.2771258]
[1646217593033,49.27827475,105.42,105.36,1.2771258]
[1646217593237,49.27827475,105.42,105.37,6.0]
[1646217593433,49.27827475,105.42,105.37,6.25]
[1646217593635,49.27827475,105.42,105.37,122.07062068]
[1646217593834,112.9,105.47,105.38,20.63062068]
[1646217594036,22.7218,105.49,105.4,14.2247]
[1646217594238,22.7218,105.49,105.41,6.0]
[1646217594437,0.5,105.5,105.41,0.25]
[1646217594634,0.5,105.5,105.41,6.59204003]
[1646217594834,0.5,105.5,105.43,8.27856295]
[1646217595035,0.5,105.5,105.44,6.0]
[1646217595237,0.0001,105.5,105.45,3.791]
[1646217595435,0.0001,105.5,105.46,17.54]
[1646217595635,0.0001,105.5,105.47,95.19]
[1646217595838,0.0001,105.5,105.48,17.54]
[1646217596035,112.9,105.58,105.48,17.54]
[1646217596036,116.691,105.58,105.5,234.01080262]
[1646217596236,5.0,105.62,105.53,2.46238308]
[1646217596436,5.0,105.62,105.54,17.54]
[1646217596437,3.49,105.62,105.54,17.54]
[1646217596635,3.79,105.64,105.54,45.12257299]
[1646217596838,118.81890964,105.65,105.57,95.19]
[1646217597037,3.48,105.67,105.65,18.54924091]
[1646217597238,0.98,105.67,105.65,26.51124091]
[1646217598238,0.43603386,105.74,105.65,30.08924091]
[1646217598442,112.9,105.81,105.67,0.13968451]
[1646217598643,114.28373557,105.81,105.7,5.0]
[1646217598839,46.84011951,105.78,105.7,5.0]
[1646217599239,3.782,105.77,105.65,30.08924091]
[1646217599441,0.13383416,105.75,105.65,30.08924091]
[1646217599642,180.1465243,105.74,105.6,11.54]
[1646217599842,0.27015439,105.71,105.6,0.25]
[1646217600041,30.42553243,105.71,105.6,11.54]
[1646217600243,0.27015439,105.7,105.53,158.062]
[1646217600441,0.27015439,105.68,105.54,15.327]
[1646217600642,119.17015439,105.68,105.54,15.327]
[1646217600844,6.1311023,105.67,105.53,3.787]
[1646217601146,46.84011951,105.65,105.53,3.787]
[1646217601342,0.41604853,105.64,105.52,15.327]
[1646217601544,112.9,105.63,105.52,11.54]
[1646217601741,0.41604853,105.62,105.52,11.54]
[1646217601942,40.65347097,105.62,105.49,3.787]
[1646217602143,30.84158096,105.6,105.49,48.57126981]
[1646217602343,54.95479003,105.6,105.49,3.787]
[1646217602544,2.76015083,105.59,105.49,3.787]
[1646217602744,117.13953203,105.59,105.49,3.787]
[1646217602945,2.3441023,105.58,105.49,3.787]
[1646217603146,0.41604853,105.57,105.49,3.787]
[1646217603345,47.25616804,105.57,105.49,3.787]
[1646217603546,58.63011951,105.57,105.49,3.787]
[1646217603748,63.63011951,105.57,105.49,3.787]
[1646217603948,0.11162192,105.56,105.49,3.787]
[1646217604146,50.9542176,105.57,105.41,5.0]
[1646217604347,50.9542176,105.57,105.42,11.54]
[1646217604348,2.4696451,105.56,105.42,11.54]
[1646217604647,30.57638344,105.54,105.43,46.77409425]
[1646217604847,30.67553243,105.54,105.43,58.31409425]
[1646217605247,30.42553243,105.54,105.43,58.31409425]
[1646217605748,46.84011951,105.52,105.45,22.31025381]
[1646217606348,46.84011951,105.52,105.44,6.0]
[1646217606547,46.84011951,105.52,105.41,5.0]
[1646217606749,0.11589495,105.51,105.41,5.0]
[1646217606948,0.11589495,105.51,105.38,11.54]
[1646217607148,47.09011951,105.52,105.39,6.0]
[1646217607348,47.09011951,105.52,105.35,11.54]
[1646217607349,30.42553243,105.5,105.35,11.54]
[1646217607549,112.9,105.46,105.35,11.54]
[1646217607750,0.31966507,105.45,105.28,14.2351]
[1646217607951,138.70789184,105.46,105.3,2.54904003]
[1646217608151,134.91289184,105.46,105.29,11.54]
[1646217608349,46.84011951,105.44,105.31,52.45970345]
[1646217608552,11.54,105.43,105.31,52.45970345]
[1646217608750,30.42553243,105.42,105.31,52.45970345]
[1646217608952,30.67553243,105.42,105.31,52.45970345]
[1646217609450,42.21553243,105.42,105.31,52.45970345]
[1646217609875,42.21553243,105.42,105.26,14.54191468]
[1646217610049,42.21553243,105.42,105.26,14.08904003]
[1646217610050,0.21531337,105.4,105.26,14.08904003]
[1646217610256,17.22,105.4,105.26,11.54]
[1646217610451,6.0,105.39,105.26,11.54]
[1646217610652,11.54,105.38,105.25,9.90075422]
[1646217610854,56.11993982,105.38,105.26,49.32887183]
[1646217611252,34.35519813,105.36,105.28,19.75547623]
[1646217611450,34.60519813,105.36,105.28,19.75547623]
[1646217613157,34.60519813,105.36,105.27,6.0]
[1646217613357,34.60519813,105.36,105.26,6.0]
[1646217613559,41.60219813,105.36,105.24,6.0]
[1646217614158,46.60219813,105.36,105.25,60.65314698]
[1646217614361,46.60219813,105.36,105.26,6.0]
[1646217614659,47.95039784,105.36,105.23,9.90946592]
[1646217614857,42.95039784,105.36,105.23,9.90946592]
[1646217615059,54.49039784,105.36,105.23,9.90946592]
[1646217615459,59.49039784,105.36,105.23,9.90946592]
[1646217615659,59.49039784,105.36,105.24,60.64584472]
[1646217615870,59.49039784,105.36,105.24,60.89584472]
[1646217616059,59.49039784,105.36,105.25,6.0]
[1646217616260,58.31039784,105.36,105.25,6.0]
[1646217616460,14.2519,105.35,105.22,5.0]
[1646217616661,18.89944658,105.34,105.22,5.0]
[1646217616863,25.33192487,105.34,105.22,5.0]
[1646217617065,25.58192487,105.34,105.22,5.0]
[1646217617261,42.91045381,105.33,105.22,5.0]
[1646217617479,42.91045381,105.33,105.22,15.92746415]
[1646217617480,33.17519813,105.31,105.22,15.92746415]
[1646217617681,34.85411497,105.31,105.17,9.91113679]
[1646217617884,33.42519813,105.31,105.18,6.0]
[1646217618081,37.22419813,105.31,105.18,6.0]
[1646217618282,37.22419813,105.31,105.18,17.99287465]
[1646217618481,33.17519813,105.31,105.18,17.99287465]
[1646217618681,3.799,105.32,105.2,0.17538348]
[1646217618881,5.0,105.34,105.2,17.71538348]
[1646217619083,5.0,105.34,105.21,14.71524801]
[1646217619281,5.0,105.34,105.22,6.0]
[1646217619484,5.0,105.34,105.22,8.79904003]
[1646217619684,5.0,105.34,105.23,47.7474302]
[1646217619883,3.799,105.36,105.24,6.0]
[1646217620085,0.18354308,105.32,105.21,23.1352865]
[1646217620282,11.54,105.31,105.12,19.8285648]
[1646217620482,0.18354308,105.3,105.12,9.9239805]
[1646217620682,15.341,105.29,105.1,24.76969563]
[1646217620885,20.2628,105.28,105.11,14.2597]
[1646217621082,0.18354308,105.26,105.12,59.43356041]
[1646217621282,25.03412292,105.24,105.12,59.43356041]
[1646217621482,25.28412292,105.24,105.14,10.83078765]
[1646217621685,36.82412292,105.24,105.15,6.0]
[1646217621883,36.82412292,105.24,105.1,9.91521716]
[1646217622092,6.0,105.23,105.1,9.91521716]
[1646217622383,13.26617724,105.22,105.06,4.95591061]
[1646217622582,6.0,105.21,105.06,14.87044235]
[1646217622783,51.05152902,105.2,105.07,50.48667838]
[1646217622981,70.75704671,105.2,105.07,50.48667838]
[1646217623183,69.37252902,105.2,105.07,50.48667838]
[1646217623381,25.03412292,105.18,105.07,50.48667838]
[1646217623584,42.72999248,105.16,105.07,50.48667838]
[1646217623782,42.97999248,105.16,105.07,50.48667838]
[1646217624385,42.72999248,105.16,105.07,50.48667838]
[1646217624586,1.48650947,105.22,105.08,6.0]
[1646217624890,5.0,105.21,105.09,0.2002268]
[1646217625091,11.54,105.22,105.09,0.2002268]
[1646217625487,3.803,105.21,105.09,0.2002268]
[1646217625687,3.803,105.21,105.09,19.77766968]
[1646217625688,60.52658283,105.21,105.09,19.77766968]
[1646217625889,60.52658283,105.21,105.11,46.82343845]
[1646217626091,56.72358283,105.21,105.12,6.0]
[1646217626290,56.72358283,105.21,105.13,23.44090961]
[1646217626499,56.72358283,105.21,105.06,9.91453174]
[1646217626689,56.72358283,105.21,105.04,47.5522]
[1646217626690,44.59184875,105.2,105.07,6.0]
[1646217626892,44.59184875,105.2,105.04,6.0]
[1646217626893,167.71847312,105.2,105.04,6.0]
[1646217627194,96.68288947,105.18,105.04,5.0]
[1646217627391,127.32450738,105.17,105.05,44.26334295]
[1646217627593,6.0,105.16,105.05,44.26334295]
[1646217627791,45.35454523,105.15,105.05,44.26334295]
[1646217627989,45.60454523,105.15,105.05,44.26334295]
[1646217628391,45.35454523,105.15,105.05,44.26334295]
[1646217628592,45.35454523,105.15,105.06,6.0]
[1646217628794,45.35454523,105.15,105.07,26.00100511]
[1646217629394,45.35454523,105.15,104.98,27.44083277]
[1646217629395,46.82235558,105.15,104.98,27.44083277]
[1646217629594,12.75467428,105.14,105.01,5.0]
[1646217629798,12.75467428,105.14,105.02,6.0]
[1646217629799,0.12468945,105.13,105.02,6.0]
[1646217629996,11.54,105.13,105.02,6.0]
[1646217630395,30.73110671,105.12,105.03,49.25855037]
[1646217630695,30.98110671,105.12,105.03,49.50855037]
[1646217630894,30.73110671,105.12,105.03,49.25855037]
[1646217631095,11.54,105.15,105.04,6.0]
[1646217631494,11.54,105.15,105.04,13.542]
[1646217631696,11.54,105.17,105.04,13.542]
[1646217631895,95.7083,105.18,105.05,95.19]
[1646217632096,58.25881916,105.17,105.07,21.00579769]
[1646217632298,58.25881916,105.17,105.09,49.25855037]
[1646217632496,58.25881916,105.17,105.11,21.00579769]
[1646217632696,58.25881916,105.17,105.12,6.0]
[1646217632899,58.25881916,105.17,105.12,6.25]
[1646217633098,58.25881916,105.17,105.12,0.25]
[1646217634097,58.25881916,105.17,105.1,10.26300436]
[1646217634298,58.25881916,105.17,105.12,55.33500901]
[1646217634500,23.5922,105.18,105.12,55.58500901]
[1646217634908,23.5922,105.18,105.13,6.0]
[1646217635099,13.86758267,105.23,105.13,6.25]
[1646217635297,11.54,105.23,105.13,6.25]
[1646217635499,45.74013618,105.24,105.14,14.92933905]
[1646217635699,45.74013618,105.24,105.14,15.17933905]
[1646217636000,45.74013618,105.24,105.16,47.94255298]
[1646217636199,45.74013618,105.24,105.18,22.32179508]
[1646217636399,45.74013618,105.24,105.18,22.57179508]
[1646217636600,15.342,105.28,105.18,22.57179508]
[1646217636899,29.2793,105.3,105.19,6.0]
[1646217637099,29.2793,105.3,105.19,6.25]
[1646217637401,24.2793,105.3,105.19,101.44]
[1646217637604,85.06991251,105.3,105.2,143.13255298]
[1646217637799,85.06991251,105.3,105.22,22.32179508]
[1646217638001,85.06991251,105.3,105.22,22.57179508]
[1646217638600,85.06991251,105.3,105.23,6.0]
[1646217638803,85.06991251,105.3,105.23,6.25]
[1646217639000,85.06991251,105.3,105.24,45.58819554]
[1646217639199,85.06991251,105.3,105.24,45.83819554]
[1646217639800,60.79061251,105.3,105.24,45.83819554]
[1646217640299,11.54,105.34,105.24,45.83819554]
[1646217640803,23.7452,105.35,105.24,141.02819554]
[1646217641001,116.698,105.36,105.25,63.07]
[1646217641203,68.7713,105.39,105.25,15.98068123]
[1646217641501,68.7713,105.39,105.27,5.0]
[1646217641704,68.7713,105.39,105.28,6.0]
[1646217641902,68.7713,105.39,105.28,6.25]
[1646217642301,22.8962,105.39,105.28,6.25]
[1646217642502,46.90909213,105.38,105.28,0.25]
[1646217642705,223.70003036,105.38,105.28,0.25]
[1646217642902,223.70003036,105.38,105.25,0.25]
[1646217643109,2.32758267,105.37,105.21,17.54]
[1646217643302,0.16633522,105.36,105.23,7.54904003]
[1646217643503,11.54,105.37,105.24,6.0]
[1646217643703,29.17655981,105.36,105.25,45.69364448]
[1646217643904,29.17655981,105.36,105.27,24.57070358]
[1646217644107,29.17655981,105.36,105.28,6.0]
[1646217644406,3.798,105.4,105.29,47.76926937]
[1646217644604,112.9,105.42,105.3,6.0]
[1646217644804,112.9,105.42,105.3,6.25]
[1646217645311,53.35104769,105.41,105.31,24.57070358]
[1646217645503,53.35104769,105.41,105.31,24.82070358]
[1646217645705,53.35104769,105.41,105.33,45.69364448]
[1646217646004,53.35104769,105.41,105.33,45.94364448]
[1646217646203,53.35104769,105.41,105.34,6.0]
[1646217646403,53.35104769,105.41,105.34,6.25]
[1646217646604,53.35104769,105.41,105.35,24.57070358]
[1646217646804,53.35104769,105.41,105.35,24.82070358]
[1646217647005,53.35104769,105.41,105.37,45.69364448]
[1646217647304,53.35104769,105.41,105.37,45.94364448]
[1646217647504,53.35104769,105.41,105.37,0.25]
[1646217647703,186.7,105.47,105.37,0.25]
[1646217648104,112.9,105.48,105.37,6.0]
[1646217648304,112.9,105.48,105.37,2.79904003]
[1646217648504,112.9,105.48,105.38,6.0]
[1646217648704,44.7938992,105.47,105.38,63.19853223]
[1646217649505,44.7938992,105.47,105.38,65.74757226]
[1646217650008,116.694,105.52,105.38,163.01296143]
[1646217650204,112.9,105.52,105.39,11.54]
[1646217650404,112.9,105.52,105.4,6.0]
[1646217650609,112.9,105.52,105.41,14.2221]
[1646217650803,112.9,105.52,105.42,6.0]
[1646217651005,53.93266117,105.51,105.43,13.31581583]
[1646217651205,53.93266117,105.51,105.44,6.0]
[1646217651403,53.93266117,105.51,105.45,53.88324118]
[1646217651606,53.93266117,105.51,105.45,0.25]
[1646217652605,23.4962,105.55,105.45,116.33876863]
[1646217652808,29.316,105.6,105.46,6.0]
[1646217653005,3.79,105.59,105.46,6.25]
[1646217653405,24.316,105.6,105.46,0.25]
[1646217653605,28.106,105.6,105.46,0.25]
[1646217653805,60.6803706,105.59,105.46,55.36036274]
[1646217654104,60.6803706,105.59,105.48,15.15398532]
[1646217654306,60.6803706,105.59,105.49,6.0]
[1646217654504,60.6803706,105.59,105.5,55.11036274]
[1646217654715,60.6803706,105.59,105.51,6.0]
[1646217654912,60.6803706,105.59,105.52,15.15398532]
[1646217655109,46.2755,105.62,105.53,6.0]
[1646217655308,5.0,105.64,105.53,6.25]
[1646217655910,5.0,105.64,105.53,8.79904003]
[1646217656111,49.83760248,105.63,105.54,55.11036274]
[1646217656412,49.83760248,105.63,105.56,15.15398532]
[1646217656611,112.9,105.65,105.57,6.0]
[1646217656813,3.787,105.68,105.57,49.12529712]
[1646217657013,5.0,105.69,105.57,49.12529712]
[1646217657213,5.0,105.69,105.58,2.54904003]
[1646217657413,5.0,105.69,105.59,6.0]
[1646217657615,3.786,105.72,105.61,152.26]
[1646217657815,112.9,105.77,105.62,101.33641327]
[1646217657816,3.785,105.76,105.62,101.33641327]
[1646217658016,116.683,105.77,105.63,18.73934727]
[1646217658219,116.683,105.77,105.64,6.0]
[1646217658417,112.9,105.77,105.64,101.44]
[1646217658637,53.16712704,105.76,105.65,17.70302535]
[1646217658838,53.16712704,105.76,105.66,20.1879]
[1646217659042,53.16712704,105.76,105.66,20.4379]
[1646217659440,53.16712704,105.76,105.67,55.11036274]
[1646217659739,53.16712704,105.76,105.68,6.0]
[1646217660039,53.16712704,105.76,105.68,6.25]
[1646217660342,53.16712704,105.76,105.68,0.25]
[1646217661143,53.16712704,105.76,105.67,6.0]
[1646217661343,112.9,105.77,105.69,95.19]
[1646217661542,323.367,105.82,105.7,114.81443576]
[1646217661747,323.367,105.82,105.7,117.36347579]
[1646217661944,323.367,105.82,105.7,133.75319604]
[1646217662145,323.367,105.82,105.7,36.01415601]
[1646217662444,56.79816369,105.81,105.71,51.78572211]
[1646217662644,56.79816369,105.81,105.72,6.0]
[1646217662845,56.79816369,105.81,105.72,6.25]
[1646217663045,56.79816369,105.81,105.73,5.0]
[1646217663646,56.79816369,105.81,105.72,6.0]
[1646217663846,56.79816369,105.81,105.71,6.0]
[1646217664046,56.79816369,105.81,105.7,19.1812]
[1646217664445,56.79816369,105.81,105.7,5.0]
[1646217664646,0.12158708,105.8,105.67,2.54904003]
[1646217664849,175.0,105.76,105.6,24.4331]
[1646217665048,0.42076228,105.75,105.63,11.54]
[1646217665253,0.42076228,105.75,105.6,11.54]
[1646217665254,112.9,105.73,105.6,11.54]
[1646217665447,112.9,105.73,105.61,56.21791895]
[1646217665448,38.17096984,105.72,105.61,56.21791895]
[1646217665647,37.75020756,105.72,105.59,60.03663125]
[1646217665851,47.00420756,105.72,105.57,42.53721656]
[1646217666049,0.15520789,105.71,105.59,11.54]
[1646217666448,12.99267565,105.71,105.55,16.07558053]
[1646217666650,7.0154575,105.69,105.55,54.75131449]
[1646217666850,6.98246107,105.69,105.56,14.2011]
[1646217667048,6.98246107,105.69,105.57,43.49964235]
[1646217667950,6.98246107,105.69,105.56,14.2011]
[1646217668159,28.52194168,105.69,105.56,14.2011]
[1646217668353,0.15200666,105.68,105.56,14.2011]
[1646217668550,0.15200666,105.68,105.53,16.75314003]
[1646217668951,239.27734168,105.69,105.49,2.28640573]
[1646217668952,134.63209261,105.66,105.51,11.54]
[1646217669152,155.53709261,105.66,105.51,5.0]
[1646217669352,0.23434808,105.64,105.51,5.0]
[1646217669552,11.77434808,105.64,105.48,11.54]
[1646217669753,0.23434808,105.62,105.51,5.0]
[1646217670054,6.73246107,105.62,105.51,44.33429467]
[1646217670252,6.98246107,105.62,105.51,44.33429467]
[1646217670451,33.20484734,105.62,105.51,44.33429467]
[1646217670857,0.22625027,105.61,105.49,6.0]
[1646217671055,44.74484734,105.62,105.5,5.0]
[1646217671255,2.32775548,105.61,105.5,5.0]
[1646217671455,21.12075548,105.61,105.5,5.0]
[1646217671655,95.19,105.6,105.5,5.0]
[1646217671854,4.67322195,105.59,105.5,5.0]
[1646217672155,4.67322195,105.59,105.23,388.35892766]
[1646217672156,95.19,105.58,105.43,112.6509432]
[1646217672356,95.19,105.58,105.46,5.0]
[1646217672357,0.25120463,105.57,105.46,5.0]
[1646217672554,0.17469482,105.57,105.42,97.27435361]
[1646217672754,106.90469482,105.57,105.41,27.50785386]
[1646217672955,39.09250256,105.56,105.42,50.36623089]
[1646217673154,11.54,105.55,105.42,50.36623089]
[1646217673358,22.84175548,105.55,105.42,50.36623089]
[1646217673555,14.23882239,105.54,105.42,50.36623089]
[1646217673756,26.02882239,105.54,105.42,50.36623089]
[1646217673956,26.02882239,105.54,105.43,6.0]
[1646217674155,0.1808066,105.53,105.43,6.0]
[1646217674355,0.1808066,105.53,105.44,50.80445034]
[1646217674556,14.48882239,105.54,105.44,50.80445034]
[1646217674756,8.48882239,105.54,105.45,6.0]
[1646217675156,8.48882239,105.54,105.42,19.74070602]
[1646217675157,8.23882239,105.54,105.42,19.74070602]
[1646217675356,8.23882239,105.54,105.42,19.99070602]
[1646217675556,8.23882239,105.54,105.43,17.2851872]
[1646217675757,8.23882239,105.54,105.43,22.5351872]
[1646217675960,8.23882239,105.54,105.44,53.88978504]
[1646217676156,8.23882239,105.54,105.44,71.42497224]
[1646217676359,11.54,105.59,105.45,25.71685058]
[1646217676560,11.54,105.59,105.47,5.0]
[1646217676857,11.54,105.59,105.47,5.25]
[1646217677056,11.54,105.59,105.47,22.5351872]
[1646217677258,31.56725207,105.58,105.48,56.99829137]
[1646217677463,43.10725207,105.58,105.48,57.24829137]
[1646217679459,31.56725207,105.58,105.48,57.24829137]
[1646217679663,31.56725207,105.58,105.5,50.86174253]
[1646217679859,31.56725207,105.58,105.5,51.11174253]
[1646217680265,31.56725207,105.58,105.5,0.25]
[1646217681067,31.56725207,105.58,105.48,47.21593604]
[1646217681667,31.56725207,105.58,105.47,14.213]
[1646217681668,31.56725207,105.58,105.5,43.00870606]
[1646217682467,31.56725207,105.58,105.5,43.25870606]
[1646217683678,31.56725207,105.58,105.51,6.0]
[1646217683875,126.4847,105.62,105.51,6.0]
[1646217683876,126.4847,105.62,105.51,6.25]
[1646217684075,23.737,105.62,105.51,43.64277081]
[1646217684376,23.737,105.62,105.52,5.11585285]
[1646217684576,5.0,105.67,105.55,14.2021]
[1646217684776,36.73364182,105.63,105.56,10.6994021]
[1646217684999,36.73364182,105.63,105.56,16.9494021]
[1646217685194,74.5218,105.68,105.56,16.9494021]
[1646217685595,74.5218,105.68,105.56,24.33182684]
[1646217685796,74.5218,105.68,105.56,66.83805404]
[1646217685996,74.5218,105.68,105.56,69.38709407]
[1646217686198,26.80853189,105.67,105.56,69.38709407]
[1646217686597,26.80853189,105.67,105.56,64.38709407]
[1646217686998,26.80853189,105.67,105.59,5.0]
[1646217687198,26.80853189,105.67,105.61,46.49883836]
[1646217687498,26.80853189,105.67,105.61,46.74883836]
[1646217687698,226.2454,105.73,105.61,46.74883836]
[1646217687999,226.2454,105.73,105.61,48.91825672]
[1646217688297,210.9194,105.73,105.61,48.91825672]
[1646217688499,210.9194,105.73,105.61,53.91825672]
[1646217688700,29.65928682,105.72,105.61,53.91825672]
[1646217689100,29.90928682,105.72,105.61,65.94403836]
[1646217689300,0.14276628,105.71,105.61,0.25]
[1646217689500,0.14276628,105.71,105.6,0.25]
[1646217689703,115.36467365,105.71,105.59,5.25]
[1646217689906,115.36467365,105.71,105.62,2.54904003]
[1646217689907,2.32190737,105.71,105.62,2.54904003]
[1646217690105,29.65928682,105.72,105.64,14.1918]
[1646217690303,29.65928682,105.72,105.65,47.47708424]
[1646217690502,29.65928682,105.72,105.65,49.98329743]
[1646217690702,29.65928682,105.72,105.66,6.0]
[1646217690902,29.65928682,105.72,105.66,6.25]
[1646217691504,29.65928682,105.72,105.66,0.25]
[1646217692104,29.65928682,105.72,105.57,144.2]
[1646217692105,29.65928682,105.72,105.6,57.69259296]
[1646217692303,29.65928682,105.72,105.62,5.0]
[1646217692504,142.55928682,105.72,105.63,20.1933]
[1646217692702,142.55928682,105.72,105.63,14.1933]
[1646217692903,142.55928682,105.72,105.63,19.1933]
[1646217693306,142.55928682,105.72,105.63,14.1933]
[1646217693504,142.55928682,105.72,105.63,19.1933]
[1646217693914,237.99928682,105.72,105.63,5.0]
[1646217694108,0.41019415,105.71,105.61,6.0]
[1646217694310,95.19,105.68,105.57,11.54]
[1646217694608,95.19,105.66,105.57,0.9]
[1646217694807,4.41500076,105.65,105.57,0.9]
[1646217695208,4.25480661,105.65,105.57,0.9]
[1646217695608,0.15598899,105.64,105.57,0.9]
[1646217695808,99.44480661,105.65,105.57,0.9]
[1646217696208,4.25480661,105.65,105.57,0.9]
[1646217696608,4.25480661,105.65,105.56,57.90572902]
[1646217697211,4.00480661,105.65,105.56,58.55572902]
[1646217697413,87.5689,105.69,105.56,154.84039836]
[1646217697611,72.2419,105.69,105.57,6.0]
[1646217697813,72.2419,105.69,105.57,12.171]
[1646217698012,72.2419,105.69,105.59,0.9]
[1646217698211,72.2419,105.69,105.59,6.9]
[1646217698412,32.22220911,105.68,105.6,55.03017755]
[1646217698616,32.22220911,105.68,105.6,55.28017755]
[1646217698813,32.22220911,105.68,105.6,0.25]
[1646217699115,127.41220911,105.68,105.59,15.3492]
[1646217699314,32.22220911,105.68,105.59,1.15]
[1646217699513,32.22220911,105.68,105.6,6.0]
[1646217699813,95.19,105.67,105.59,0.9]
[1646217700017,1.44188432,105.66,105.55,68.52159727]
[1646217700214,1.69188432,105.66,105.55,54.06719727]
[1646217700415,2.32190737,105.65,105.55,54.06719727]
[1646217700615,24.19931593,105.64,105.55,54.06719727]
[1646217700815,119.38931593,105.64,105.55,54.06719727]
[1646217701015,24.19931593,105.64,105.55,54.06719727]
[1646217701621,24.19931593,105.64,105.57,46.4016329]
[1646217701918,11.54,105.68,105.57,46.6516329]
[1646217702115,95.19,105.67,105.58,6.0]
[1646217702315,95.19,105.67,105.58,6.25]
[1646217702516,95.19,105.67,105.58,0.25]
[1646217703216,109.6447,105.67,105.58,0.25]
[1646217703414,109.6447,105.67,105.55,14.2043]
[1646217703415,101.19,105.66,105.56,6.0]
[1646217703615,101.19,105.66,105.56,6.25]
[1646217704015,121.29978392,105.65,105.56,63.96756547]
[1646217704417,121.29978392,105.65,105.56,67.75456547]
[1646217704816,121.29978392,105.65,105.56,67.50456547]
[1646217705020,121.29978392,105.65,105.56,9.787]
[1646217705221,121.29978392,105.65,105.56,6.0]
[1646217705421,178.36978392,105.65,105.55,14.2043]
[1646217705621,95.19,105.63,105.51,3.787]
[1646217705822,11.54,105.62,105.47,15.327]
[1646217706023,95.19,105.59,105.49,60.54842258]
[1646217706230,7.55430951,105.58,105.49,60.54842258]
[1646217706430,7.55430951,105.58,105.51,47.51802904]
[1646217706624,7.55430951,105.58,105.53,48.29466297]
[1646217706925,95.19,105.61,105.53,48.29466297]
[1646217707125,46.8857,105.63,105.53,48.29466297]
[1646217707323,24.5399,105.64,105.53,48.29466297]
[1646217707523,24.5399,105.64,105.54,6.0]
[1646217707723,25.04180837,105.63,105.54,6.0]
[1646217707923,132.02180837,105.63,105.55,48.38709026]
[1646217708326,132.02180837,105.63,105.49,3.787]
[1646217708527,146.23160837,105.63,105.5,6.0]
[1646217708725,146.23160837,105.63,105.5,0.25]
[1646217708928,146.23160837,105.63,105.5,4.039]
[1646217709128,146.23160837,105.63,105.51,6.0]
[1646217709325,51.04160837,105.63,105.55,50.43948227]
[1646217709936,50.79160837,105.63,105.55,50.43948227]
[1646217710138,25.7498,105.63,105.55,50.68948227]
[1646217710427,11.54,105.63,105.55,50.68948227]
[1646217710628,106.73,105.63,105.55,4.41]
[1646217711328,106.98,105.63,105.55,4.41]
[1646217711531,122.05961027,105.62,105.55,4.41]
[1646217711729,26.86961027,105.62,105.55,4.41]
[1646217712330,26.86961027,105.62,105.55,0.25]
[1646217712528,26.86961027,105.62,105.54,46.98631381]
[1646217712729,38.40961027,105.62,105.54,46.98631381]
[1646217713533,133.59961027,105.62,105.54,0.25]
[1646217713734,133.59961027,105.62,105.53,4.41]
[1646217715031,148.06001027,105.62,105.53,56.54766091]
[1646217715432,6.0,105.61,105.53,56.54766091]
[1646217715631,17.54,105.61,105.53,4.41]
[1646217715931,11.54,105.61,105.53,4.41]
[1646217716131,106.73,105.61,105.53,0.25]
[1646217716334,106.73,105.61,105.52,14.4595]